fUSD/lending_fUSD_20240819
["ID","MTS","AMOUNT","RATE_DAILY","PERIOD"]
[335254907,1724044656025,-500.0,0.00010999,2]
[335254908,1724044656046,-500.0,0.00010999,2]
[335254909,1724044656068,-500.0,0.00010999,2]
[335254910,1724044656090,-500.0,0.00010999,2]
[335254911,1724044656112,-500.0,0.00010999,2]
[335254912,1724044656134,-500.0,0.00010999,2]
[335254913,1724044656158,-500.0,0.00010999,2]
[335254914,1724044656180,-500.0,0.00010999,2]
[335254915,1724044656202,-500.0,0.00010999,2]
[335254916,1724044656227,-244.87324542,0.00010999,2]
[335254917,1724044656253,-500.0,0.00010999,2]
[335254918,1724044656275,-520.84519912,0.00010999,2]
[335254919,1724044656296,-500.0,0.00010999,2]
[335254920,1724044656318,-500.0,0.00010999,2]
[335254921,1724044656340,-500.0,0.00010999,2]
[335254922,1724044656361,-500.0,0.00010999,2]
[335254923,1724044656383,-500.0,0.00010999,2]
[335254924,1724044656404,-500.0,0.00010999,2]
[335254925,1724044656429,-500.0,0.00010999,2]
[335254926,1724044656453,-184.42599031,0.00010999,2]
[335254927,1724044656476,-960.74880255,0.00010999,2]
[335254928,1724044669359,-278.9014,0.00010899,2]
[335254929,1724044669384,-267.94119745,0.00010999,2]
[335254930,1724044669409,-1799.26,0.00010999,2]
[335254931,1724044669434,-1799.26,0.00010999,2]
[335254932,1724044669458,-1799.26,0.00010999,2]
[335254933,1724044669483,-1799.26,0.00010999,2]
[335254934,1724044669507,-1799.26,0.00010999,2]
[335254935,1724044669531,-1799.26,0.00010999,2]
[335254936,1724044669555,-1799.26,0.00010999,2]
[335254937,1724044669735,-1799.26,0.00010999,2]
[335254938,1724044669762,-1799.26,0.00010999,2]
[335254939,1724044669791,-1799.26,0.00010999,2]
[335254940,1724044669815,-1058.69670255,0.00010999,2]
[335254941,1724044707445,502.69981957,8.22e-05,2]
[335254942,1724044707589,502.27319543,8.22e-05,2]
[335254943,1724044707864,209.96856908,8.22e-05,2]
[335254944,1724044707896,531.83876124,8.22e-05,2]
[335254945,1724044744538,-494.60128173,9.943e-05,2]
[335254946,1724044744566,-15481.61989988,9.943e-05,2]
[335254947,1724044744591,-156.20638803,9.943e-05,2]
[335254948,1724044744620,-2158.62326234,9.943e-05,2]
[335254949,1724044744647,-292.14278454,9.962e-05,2]
[335254950,1724044744673,-349.15124606,9.962e-05,2]
[335254951,1724044744698,-155.25446864,9.962e-05,2]
[335254952,1724044744722,-403.2579673,9.962e-05,2]
[335254953,1724044744745,-155.40576319,9.962e-05,2]
[335254954,1724044744769,-296.63479044,9.962e-05,2]
[335254955,1724044744794,-908.17669203,9.962e-05,2]
[335254956,1724044744819,-261.29425219,9.962e-05,2]
[335254957,1724044744844,-348.31851385,9.962e-05,2]
[335254958,1724044744869,-407.89764163,9.962e-05,2]
[335254959,1724044744893,-550.0,0.0001,2]
[335254960,1724044744917,-510.46104815,0.0001,4]
[335254961,1724044750089,-419.23699242,9.943e-05,2]
[335254962,1724044750116,-144.32194039,0.0001,4]
[335254963,1724044750142,-300.13681126,0.0001,2]
[335254964,1724044750168,-19136.30425593,0.00010303,2]
[335254965,1724044750963,-4763.69574407,0.00010303,2]
[335254966,1724044750992,-433.259481,0.00010574,2]
[335254967,1724044751017,-218.784216,0.00010574,2]
[335254968,1724044751042,-433.259481,0.00010706,2]
[335254969,1724044751067,-218.784216,0.00010706,2]
[335254970,1724044751093,-2378.15,0.00010781,2]
[335254971,1724044751120,-2338.29153805,0.00010799,2]
[335254972,1724044751146,-433.259481,0.00010838,2]
[335254973,1724044751171,-218.784216,0.00010838,2]
[335254974,1724044751196,-3307.527,0.00010899,2]
[335254975,1724044751221,-5256.20462688,0.000109,2]
[335254977,1724044922958,163.68,9.868e-05,2]
[335254978,1724044929078,488.06,9.868e-05,2]
[335254980,1724044936294,1369.06,9.867e-05,2]
[335254982,1724044936786,500.0,9.454e-05,2]
[335254986,1724044943557,411.29,8.219e-05,2]
[335254987,1724044945100,250.0,9.854e-05,2]
[335254988,1724044949438,562.417315,9.901e-05,2]
[335254990,1724045002522,4327.951702,9.899e-05,2]
[335254991,1724045008267,155.50279462,9.899e-05,2]
[335254992,1724045014734,368.51598216,9.899e-05,2]
[335254993,1724045016807,193.26054342,9.899e-05,2]
[335254994,1724045027302,155.28369685,9.899e-05,2]
[335254995,1724045029811,180.7912966,9.899e-05,2]
[335254996,1724045032089,380.92710327,9.899e-05,2]
[335254997,1724045036176,162.35141517,9.899e-05,2]
[335254998,1724045037703,156.89879413,9.899e-05,2]
[335254999,1724045042355,1257.5209126,9.899e-05,2]
[335255000,1724045046023,1500.0,9.899e-05,2]
[335255001,1724045058819,189.8,7.91e-05,2]
[335255002,1724045075939,203.6067823,9.899e-05,2]
[335255003,1724045076621,365.68547453,9.899e-05,2]
[335255004,1724045111963,348.37197442,9.588e-05,2]
[335255005,1724045118685,150.0,9.888e-05,2]
[335255006,1724045173424,23900.0,9.883e-05,2]
[335255007,1724045224007,200.0,9.824e-05,2]
[335255008,1724045225820,346.93,9.824e-05,2]
[335255009,1724045236244,500.0,9.153e-05,2]
[335255010,1724045246493,318.03056554,9.781e-05,2]
[335255012,1724045327936,2456.49,9.806e-05,2]
[335255013,1724045338084,2153.48,9.838e-05,2]
[335255014,1724045381629,163.68,9.836e-05,2]
[335255015,1724045402328,151.08468512,9.836e-05,2]
[335255017,1724045408689,-3882.15125314,9.907e-05,2]
[335255020,1724045408772,-3110.99064509,9.907e-05,2]
[335255032,1724045431495,-586.33,9.907e-05,2]
[335255033,1724045431508,-594.99826677,9.907e-05,2]
[335255034,1724045431554,-1825.529835,9.907e-05,2]
[335255035,1724045431565,-933.26053355,9.98e-05,2]
[335255036,1724045431577,-3738.33197682,9.98e-05,2]
[335255037,1724045431586,-227.53466977,0.0001,2]
[335255038,1724045431597,-4798.86921683,0.0001,2]
[335255039,1724045431607,-341.14193703,0.0001,4]
[335255040,1724045431616,-712.21375949,0.0001,2]
[335255041,1724045431627,-200.0,0.00010004,2]
[335255042,1724045431638,-21227.40016639,0.00010009,2]
[335255043,1724045431647,-171.75,0.00010107,2]
[335255044,1724045431657,-150.0,0.00010199,2]
[335255045,1724045431666,-4768.0,0.000102,5]
[335255046,1724045431676,-411.29,0.00010468,2]
[335255047,1724045431686,-499.99,0.00010471,2]
[335255048,1724045431697,-6410.19422368,0.00010505,2]
[335255049,1724045431706,-328.393888,0.00010574,2]
[335255050,1724045431715,-154.73553,0.00010574,2]
[335255051,1724045431725,-216.48783,0.00010574,2]
[335255052,1724045431734,-1909.01565803,0.00010699,2]
[335255053,1724045431743,-1075.39701707,0.00010699,2]
[335255054,1724045431753,-328.393888,0.00010706,2]
[335255055,1724045431763,-216.48783,0.00010706,2]
[335255056,1724045431772,-1139.85619888,0.00010713,2]
[335255057,1724045431781,-12326.71371381,0.000108,2]
[335255058,1724045431790,-328.393888,0.00010838,2]
[335255059,1724045431801,-216.48783,0.00010838,2]
[335255060,1724045431812,-164.41632778,0.00010862,2]
[335255061,1724045431823,-254.98834616,0.00010862,2]
[335255062,1724045431834,-155.0,0.00010888,2]
[335255063,1724045431844,-197.27215158,0.00010888,2]
[335255064,1724045431853,-14982.31584799,0.00010888,2]
[335255065,1724045431862,-155.0,0.00010888,2]
[335255066,1724045431873,-20133.87839727,0.0001089,2]
[335255067,1724045431883,-500.0,0.00010899,2]
[335255068,1724045431893,-155.0,0.00010899,2]
[335255069,1724045431905,-88168.90827312,0.000109,2]
[335255070,1724045431915,-353.4213,0.000109,2]
[335255071,1724045431925,-300.13681126,0.000109,2]
[335255072,1724045431935,-1000.0,0.000109,2]
[335255073,1724045431944,-1017.96,0.000109,2]
[335255074,1724045431953,-34806.00865032,0.000109,2]
[335255075,1724045431962,-418.51079206,0.00010958,2]
[335255076,1724045431971,-301.84,0.00010959,2]
[335255077,1724045431980,-433.259481,0.00010971,2]
[335255078,1724045431990,-218.784216,0.00010971,2]
[335255079,1724045431999,-328.393888,0.00010971,2]
[335255080,1724045432008,-216.48783,0.00010971,2]
[335255081,1724045432019,-844.72,0.00010978,2]
[335255082,1724045432028,-500.0,0.00010978,2]
[335255084,1724045432037,-500.0,0.00010978,2]
[335255085,1724045432046,-500.0,0.00010978,2]
[335255087,1724045432055,-930.49,0.00010989,2]
[335255088,1724045432067,-62243.00563464,0.0001099,3]
[335255089,1724045432077,-3966.0673045,0.00010992,2]
[335255090,1724045432086,-2837.81190447,0.00010992,2]
[335255091,1724045432098,-1075.43,0.00010992,2]
[335255092,1724045433359,-162.19085823,0.00010992,2]
[335255093,1724045433368,-4184.7982209,0.00010992,2]
[335255094,1724045433378,-429.30858162,0.00010992,2]
[335255105,1724045437374,-1276.0146638,0.00010505,2]
[335255107,1724045437383,-65.5553362,0.00010992,2]
[335255109,1724045437395,-1720.75393469,0.00010992,2]
[335255113,1724045437487,-473.3383626,0.00010992,2]
[335255114,1724045437498,-372.94911677,0.00010992,2]
[335255115,1724045437510,-600.5,0.00010992,2]
[335255116,1724045437545,-631.75834722,0.00010992,2]
[335255117,1724045437555,-2916.21354176,0.00010992,2]
[335255118,1724045437658,-1487.31559554,0.00010992,2]
[335255126,1724045437833,-404.0790467,0.00010992,2]
[335255128,1724045437843,-354.0841867,0.00010992,2]
[335255130,1724045437854,-304.0893266,0.00010992,2]
[335255132,1724045437867,-254.0944665,0.00010992,2]
[335255134,1724045437877,-204.0996064,0.00010992,2]
[335255136,1724045437886,-264.61688049,0.00010993,2]
[335255138,1724045437896,-3856.7018462,0.00010997,2]
[335255140,1724045437907,-500.0,0.00010998,2]
[335255142,1724045437916,-500.0,0.00010998,2]
[335255144,1724045437925,-500.0,0.00010999,2]
[335255146,1724045437935,-500.0,0.00010999,2]
[335255148,1724045437944,-500.0,0.00010999,2]
[335255149,1724045437953,-511.65701891,0.00010999,2]
[335255151,1724045437963,-500.0,0.00010999,2]
[335255153,1724045437972,-211.65467018,0.00010999,2]
[335255155,1724045437981,-500.0,0.00010999,2]
[335255157,1724045437990,-500.0,0.00010999,2]
[335255159,1724045438000,-500.0,0.00010999,2]
[335255161,1724045438009,-500.0,0.00010999,2]
[335255163,1724045438019,-500.0,0.00010999,2]
[335255165,1724045438028,-500.0,0.00010999,2]
[335255167,1724045438037,-500.0,0.00010999,2]
[335255169,1724045438046,-500.0,0.00010999,2]
[335255171,1724045438056,-500.0,0.00010999,2]
[335255173,1724045438065,-500.0,0.00010999,2]
[335255175,1724045438075,-500.0,0.00010999,2]
[335255177,1724045438084,-500.0,0.00010999,2]
[335255179,1724045438094,-500.0,0.00010999,2]
[335255181,1724045438103,-384.5332823,0.00010999,2]
[335255183,1724045438112,-930.49,0.00010999,2]
[335255185,1724045438122,-930.49,0.00010999,2]
[335255187,1724045438131,-930.49,0.00010999,2]
[335255189,1724045438140,-930.49,0.00010999,2]
[335255191,1724045438149,-930.49,0.00010999,2]
[335255192,1724045438159,-930.49,0.00010999,2]
[335255194,1724045438168,-930.49,0.00010999,2]
[335255196,1724045438177,-930.49,0.00010999,2]
[335255198,1724045438187,-930.49,0.00010999,2]
[335255200,1724045438196,-439.71387747,0.00010999,2]
[335255330,1724045439600,-490.77612253,0.00010999,2]
[335255332,1724045439610,-930.49,0.00010999,2]
[335255335,1724045439619,-930.49,0.00010999,2]
[335255338,1724045439629,-930.49,0.00010999,2]
[335255341,1724045439639,-930.49,0.00010999,2]
[335255343,1724045439648,-930.49,0.00010999,2]
[335255346,1724045439658,-930.49,0.00010999,2]
[335255349,1724045439667,-930.49,0.00010999,2]
[335255352,1724045439677,-930.49,0.00010999,2]
[335255355,1724045439688,-930.49,0.00010999,2]
[335255357,1724045439697,-930.49,0.00010999,2]
[335255360,1724045439707,-930.49,0.00010999,2]
[335255363,1724045439716,-930.49,0.00010999,2]
[335255365,1724045439726,-930.59770539,0.00010999,2]
[335255368,1724045439735,-844.72,0.00010999,2]
[335255370,1724045439744,-844.72,0.00010999,2]
[335255372,1724045439754,-844.72,0.00010999,2]
[335255374,1724045439763,-844.72,0.00010999,2]
[335255376,1724045439772,-844.72,0.00010999,2]
[335255378,1724045439781,-844.72,0.00010999,2]
[335255380,1724045439791,-844.72,0.00010999,2]
[335255382,1724045439800,-844.72,0.00010999,2]
[335255384,1724045439809,-844.72,0.00010999,2]
[335255386,1724045439818,-844.72,0.00010999,2]
[335255388,1724045439829,-844.72,0.00010999,2]
[335255390,1724045439841,-844.72,0.00010999,2]
[335255392,1724045439851,-844.72,0.00010999,2]
[335255394,1724045439862,-844.72,0.00010999,2]
[335255396,1724045439871,-844.72,0.00010999,2]
[335255398,1724045439881,-844.72,0.00010999,2]
[335255400,1724045439892,-844.72,0.00010999,2]
[335255402,1724045439901,-844.72,0.00010999,2]
[335255404,1724045439911,-844.72,0.00010999,2]
[335255406,1724045439921,-844.72,0.00010999,2]
[335255408,1724045439931,-844.72,0.00010999,2]
[335255410,1724045439940,-844.72,0.00010999,2]
[335255412,1724045439950,-844.84,0.00010999,2]
[335255414,1724045439959,-500.0,0.00010999,2]
[335255416,1724045439968,-500.0,0.00010999,2]
[335255418,1724045439978,-500.0,0.00010999,2]
[335255420,1724045439987,-500.0,0.00010999,2]
[335255422,1724045439996,-500.0,0.00010999,2]
[335255424,1724045440006,-500.0,0.00010999,2]
[335255426,1724045440016,-500.0,0.00010999,2]
[335255428,1724045440027,-500.0,0.00010999,2]
[335255431,1724045440038,-500.0,0.00010999,2]
[335255433,1724045440051,-393.12924016,0.00010999,2]
[335255435,1724045440062,-500.0,0.00010999,2]
[335255437,1724045440072,-500.0,0.00010999,2]
[335255439,1724045440082,-500.0,0.00010999,2]
[335255441,1724045440091,-500.0,0.00010999,2]
[335255443,1724045440100,-500.0,0.00010999,2]
[335255445,1724045440111,-500.0,0.00010999,2]
[335255447,1724045440120,-412.84610839,0.00010999,2]
[335255449,1724045440130,-305.07,0.00010999,2]
[335255451,1724045440139,-1647.40682,0.00010999,2]
[335255453,1724045440149,-522.0,0.00010999,2]
[335255455,1724045440158,-158940.36966385,0.00011,2]
[335255458,1724045440178,-739.87264126,0.00011,2]
[335255460,1724045440189,-1075.89661415,0.00011,2]
[335255463,1724045440200,-1058.06846759,0.00011,2]
[335255967,1724045445748,-348.79962853,0.00010993,2]
[335255969,1724045445758,-627.70037147,0.00011,2]
[335255971,1724045445769,-383.435,0.00011,2]
[335256043,1724045482430,377.94,9.078e-05,2]
[335256046,1724045837225,500.0,9.055e-05,2]
[335256047,1724045837718,769.45078328,9.508e-05,2]
[335256048,1724045849135,500.0,9.012e-05,2]
[335256049,1724045955019,367.26,9.898e-05,2]
[335256050,1724045997329,366.82,8.219e-05,2]
[335256051,1724046162729,16454.84,9.9e-05,2]
[335256052,1724046240990,171.75,9.893e-05,2]
[335256054,1724046319078,200.0,9.897e-05,2]
[335256056,1724046343985,1326.42,9.879e-05,2]
[335256058,1724046363532,250.0,9.878e-05,2]
[335256060,1724046466891,609.55,9.851e-05,2]
[335256061,1724046482108,-10000.0,9.911e-05,2]
[335256062,1724046482133,-300.0,9.935e-05,2]
[335256063,1724046482155,-390.45,9.938e-05,2]
[335256064,1724046482177,-1975.9,9.96e-05,2]
[335256065,1724046482201,-280.2,0.0001,2]
[335256066,1724046482223,-6503.45,0.0001,2]
[335256067,1724046492098,-18935.093424,0.0001,2]
[335256068,1724046492123,-330.95758592,0.00010009,2]
[335256069,1724046492149,-197.27215158,0.00010026,2]
[335256070,1724046492174,-155.0,0.00010097,2]
[335256071,1724046492198,-378.6768385,0.000101,3]
[335256072,1724046539787,500.0,8.22e-05,2]
[335256073,1724046539825,500.0,8.22e-05,2]
[335256074,1724046540725,500.0,8.22e-05,2]
[335256075,1724046568002,1311.21932228,8.22e-05,2]
[335256076,1724046583220,419.77,8.219e-05,2]
[335256083,1724046631581,-176.98,9.941e-05,2]
[335256084,1724046631590,-196.80425984,9.963e-05,2]
[335256085,1724046631599,-213.97439492,9.963e-05,2]
[335256086,1724046631611,-1002.70208657,9.963e-05,2]
[335256087,1724046631620,-550.0,0.0001,2]
[335256088,1724046631629,-357.4813523,0.00010009,2]
[335256089,1724046631638,-1138.22789575,0.00010009,2]
[335256090,1724046631648,-546.554705,0.00010097,2]
[335256091,1724046631657,-687.47768044,0.00010097,2]
[335256092,1724046631667,-535.234653,0.00010097,2]
[335256093,1724046631676,-337.0,0.000101,3]
[335256094,1724046631685,-300.13681126,0.000101,2]
[335256095,1724046631695,-341.14193703,0.000101,4]
[335256096,1724046631704,-150.0,0.00010164,2]
[335256097,1724046631717,-300.0,0.00010199,2]
[335256098,1724046631726,-156.67003083,0.000102,5]
[335256099,1724046631738,-1143.0,0.000102,5]
[335256100,1724046631754,-8680.88328834,0.000102,5]
[335256101,1724046631765,-327.39805379,0.000102,5]
[335256122,1724046632083,-866.03562275,0.000102,5]
[335256125,1724046632101,-328.01300429,0.000102,5]
[335256127,1724046632110,-153.1193654,0.00010472,2]
[335256146,1724046637594,-155.0,0.00010026,2]
[335256147,1724046637603,-266.6506346,0.00010472,2]
[335256148,1724046637613,-179.86122976,0.00010505,2]
[335256149,1724046637653,-260.34846454,0.00010505,2]
[335256150,1724046637662,-32.15153546,0.00010566,2]
[335256151,1724046637712,-2549.21782709,0.00010566,2]
[335256152,1724046637722,-4063.92427823,0.00010566,2]
[335256153,1724046637731,-2144.51516389,0.00010566,2]
[335256154,1724046637740,-1276.0146638,0.00010699,2]
[335256155,1724046637750,-895.19865544,0.00010713,2]
[335256156,1724046637759,-150.0,0.00010798,2]
[335256157,1724046637769,-100.47670781,0.00010852,2]
[335256158,1724046637789,-64.26447829,0.00010852,2]
[335256159,1724046637798,-255.21992957,0.00010861,2]
[335256160,1724046637808,-73.18863315,0.00010861,2]
[335256161,1724046639755,-527.60929631,0.00010861,2]
[335256162,1724046639764,-236.36319912,0.00010862,2]
[335256163,1724046639774,-650.04785045,0.00010862,2]
[335256164,1724046639783,-236.99180348,0.00010862,2]
[335256165,1724046639792,-159.62357463,0.00010862,2]
[335256166,1724046639802,-155.0,0.00010862,2]
[335256167,1724046639811,-155.0,0.00010862,2]
[335256168,1724046639820,-225.61436308,0.00010862,2]
[335256169,1724046639829,-522.96750718,0.00010862,2]
[335256170,1724046639839,-653.58446608,0.00010862,2]
[335256171,1724046639848,-485.22914892,0.00010888,2]
[335256172,1724046639858,-155.0,0.00010888,2]
[335256173,1724046639867,-330.25656643,0.00010888,2]
[335256174,1724046639877,-203.42899612,0.00010888,2]
[335256175,1724046639887,-255.45830691,0.00010888,2]
[335256176,1724046639896,-380.35876131,0.00010888,2]
[335256177,1724046639905,-432.5166998,0.00010888,2]
[335256178,1724046639915,-155.0,0.0001089,2]
[335256179,1724046639924,-155.0,0.0001089,2]
[335256180,1724046639934,-367.98538424,0.00010899,2]
[335256181,1724046639943,-328.27252306,0.00010899,2]
[335256182,1724046639952,-8074.2552441,0.000109,2]
[335256183,1724046639974,-285.12435591,0.000109,2]
[335256184,1724046639985,-294.929314,0.000109,2]
[335256185,1724046640118,-9096.64373114,0.000109,2]
[335256186,1724046640130,-8947.21879473,0.000109,2]
[335256187,1724046640144,-8943.78386462,0.000109,2]
[335256188,1724046640157,-9077.54866152,0.000109,2]
[335256189,1724046640168,-8943.84023489,0.000109,2]
[335256190,1724046640190,-853.11469909,0.000109,2]
[335256191,1724046640199,-1008.0,0.000109,2]
[335256192,1724046640208,-561.82304389,0.000109,2]
[335256221,1724046644371,-686.1826,0.00010899,2]
[335256222,1724046644380,-303.44695611,0.000109,2]
[335256223,1724046644389,-340.1822795,0.000109,2]
[335256224,1724046644398,-211.08016593,0.00010989,2]
[335256225,1724046644409,-459.758987,0.00010992,2]
[335256226,1724046644419,-459.758987,0.00010992,2]
[335256227,1724046644429,-459.758987,0.00010992,2]
[335256228,1724046644439,-459.758987,0.00010992,2]
[335256229,1724046644451,-459.758987,0.00010992,2]
[335256230,1724046644460,-218.92791442,0.00010993,2]
[335256231,1724046644470,-216.62974,0.00010998,2]
[335256232,1724046644479,-217.636024,0.00010998,2]
[335256233,1724046644489,-164.196944,0.00010998,2]
[335256234,1724046644499,-506.74752125,0.00010998,2]
[335256235,1724046644509,-500.0,0.00010998,2]
[335256236,1724046644518,-558.4583387,0.00010998,2]
[335256237,1724046644528,-517.4751876,0.00010998,2]
[335256238,1724046644538,-258.93124027,0.00010998,2]
[335256239,1724046644548,-500.0,0.00010998,2]
[335256240,1724046644558,-500.0,0.00010998,2]
[335256241,1724046644568,-500.0,0.00010998,2]
[335256242,1724046644579,-500.0,0.00010998,2]
[335256243,1724046644588,-500.0,0.00010998,2]
[335256244,1724046644598,-500.0,0.00010998,2]
[335256245,1724046644607,-285.98808117,0.00010998,2]
[335256257,1724046645710,-534.96907674,0.00010372,2]
[335256258,1724046645721,-214.01191883,0.00010998,2]
[335256259,1724046645731,-500.0,0.00010998,2]
[335256260,1724046645742,-500.0,0.00010998,2]
[335256261,1724046645752,-500.0,0.00010998,2]
[335256262,1724046645763,-500.0,0.00010998,2]
[335256263,1724046645773,-500.0,0.00010998,2]
[335256264,1724046645783,-500.0,0.00010998,2]
[335256265,1724046645793,-500.0,0.00010998,2]
[335256266,1724046645802,-500.0,0.00010998,2]
[335256267,1724046645812,-500.0,0.00010998,2]
[335256268,1724046645822,-500.0,0.00010998,2]
[335256269,1724046645833,-500.0,0.00010998,2]
[335256270,1724046645844,-500.0,0.00010998,2]
[335256271,1724046645853,-500.0,0.00010998,2]
[335256272,1724046645862,-167.25400653,0.00010998,2]
[335256273,1724046645885,-332.74599347,0.00010998,2]
[335256274,1724046645895,-500.0,0.00010998,2]
[335256275,1724046645904,-500.0,0.00010998,2]
[335256276,1724046645915,-500.0,0.00010998,2]
[335256277,1724046645923,-500.0,0.00010998,2]
[335256278,1724046645933,-501.88206314,0.00010998,2]
[335256279,1724046645943,-500.0,0.00010998,2]
[335256280,1724046645953,-604.53,0.00010998,2]
[335256281,1724046645962,-500.0,0.00010998,2]
[335256282,1724046645971,-500.0,0.00010998,2]
[335256283,1724046645980,-577.89370777,0.00010998,2]
[335256284,1724046645989,-500.0,0.00010998,2]
[335256285,1724046645998,-500.0,0.00010998,2]
[335256286,1724046646007,-500.0,0.00010998,2]
[335256287,1724046646016,-216.62974,0.00010999,2]
[335256288,1724046646025,-217.636024,0.00010999,2]
[335256289,1724046646034,-164.196944,0.00010999,2]
[335256290,1724046646043,-500.0,0.00010999,2]
[335256291,1724046646052,-500.0,0.00010999,2]
[335256292,1724046646061,-500.0,0.00010999,2]
[335256293,1724046646069,-113.44012342,0.00010999,2]
[335256294,1724046646081,-386.55987658,0.00010999,2]
[335256295,1724046646089,-500.0,0.00010999,2]
[335256296,1724046646098,-500.0,0.00010999,2]
[335256297,1724046646107,-500.0,0.00010999,2]
[335256298,1724046646116,-500.0,0.00010999,2]
[335256299,1724046646125,-500.0,0.00010999,2]
[335256300,1724046646134,-500.0,0.00010999,2]
[335256301,1724046646143,-500.0,0.00010999,2]
[335256302,1724046646152,-500.0,0.00010999,2]
[335256303,1724046646161,-500.0,0.00010999,2]
[335256304,1724046646171,-500.0,0.00010999,2]
[335256305,1724046646187,-258.00171598,0.00010999,2]
[335256306,1724046646197,-500.0,0.00010999,2]
[335256307,1724046646206,-217.97,0.00010999,2]
[335256308,1724046646216,-500.0,0.00010999,2]
[335256309,1724046646226,-500.0,0.00010999,2]
[335256310,1724046646235,-500.0,0.00010999,2]
[335256311,1724046646245,-500.0,0.00010999,2]
[335256312,1724046646255,-500.0,0.00010999,2]
[335256313,1724046646265,-500.0,0.00010999,2]
[335256314,1724046646275,-237.39,0.00010999,2]
[335256315,1724046646285,-500.0,0.00010999,2]
[335256316,1724046646295,-500.0,0.00010999,2]
[335256317,1724046646304,-500.0,0.00010999,2]
[335256318,1724046646314,-500.0,0.00010999,2]
[335256319,1724046646323,-500.0,0.00010999,2]
[335256320,1724046646335,-500.0,0.00010999,2]
[335256321,1724046646344,-500.0,0.00010999,2]
[335256322,1724046646354,-500.0,0.00010999,2]
[335256323,1724046646363,-506.14497755,0.00010999,2]
[335256324,1724046646372,-500.0,0.00010999,2]
[335256325,1724046646382,-427.19998474,0.00010999,2]
[335256326,1724046646391,-500.0,0.00010999,2]
[335256327,1724046646401,-500.0,0.00010999,2]
[335256328,1724046646410,-500.0,0.00010999,2]
[335256329,1724046646419,-214.29,0.00010999,2]
[335256330,1724046646428,-500.0,0.00010999,2]
[335256331,1724046646438,-500.0,0.00010999,2]
[335256332,1724046646447,-500.0,0.00010999,2]
[335256333,1724046646457,-500.0,0.00010999,2]
[335256334,1724046646467,-500.0,0.00010999,2]
[335256335,1724046646477,-500.0,0.00010999,2]
[335256336,1724046646486,-500.0,0.00010999,2]
[335256337,1724046646496,-500.0,0.00010999,2]
[335256338,1724046646505,-500.0,0.00010999,2]
[335256339,1724046646515,-500.0,0.00010999,2]
[335256340,1724046646524,-500.0,0.00010999,2]
[335256341,1724046646534,-500.0,0.00010999,2]
[335256342,1724046646543,-500.0,0.00010999,2]
[335256343,1724046646554,-500.0,0.00010999,2]
[335256344,1724046646563,-500.0,0.00010999,2]
[335256345,1724046646572,-500.0,0.00010999,2]
[335256346,1724046646581,-500.0,0.00010999,2]
[335256347,1724046646591,-500.0,0.00010999,2]
[335256348,1724046646600,-500.0,0.00010999,2]
[335256349,1724046646610,-500.0,0.00010999,2]
[335256350,1724046646622,-500.0,0.00010999,2]
[335256351,1724046646631,-500.0,0.00010999,2]
[335256352,1724046646640,-349.88,0.00010999,2]
[335256353,1724046646649,-500.0,0.00010999,2]
[335256354,1724046646659,-500.0,0.00010999,2]
[335256355,1724046646668,-500.0,0.00010999,2]
[335256356,1724046646678,-500.0,0.00010999,2]
[335256357,1724046646687,-500.0,0.00010999,2]
[335256358,1724046646696,-443.15,0.00010999,2]